{"text_format":"1","workbook":"xlsx","n_sheets":7,"sheets":["Instructions","Saisie des données","Rapports","Impôts","Dialog","Module1","Tableau des taux de DPA"],"not_rendered":{"charts":0,"images":0,"macros":1,"external_links":0,"defined_names":22,"comments":1,"pivot_tables":0},"unopened":[{"sheet":"Dialog","index":4,"reason":"not_a_worksheet"},{"sheet":"Module1","index":5,"reason":"part_missing"}],"bounds":{"document_bytes":16777216,"sheet_cells":100000,"rows_first":2000,"rows_last":500,"rows_between":2000,"halvings":0,"cell_chars":16384,"cell_head_chars":4096},"cells_cut":0,"cells_raw":0,"read":"whole","date_system":"1900"}

{"sheet":"Instructions","index":0,"n_rows":191,"n_cols":4,"rows_kept":191,"cut":false,"hidden":false,"merged":[]}
["Ceci est une calculatrice d'aide aux décisions d'affaire à la ferme qui comporte 5 feuilles de travail. Certains champs doivent être remplis par l'utilisateur. Elle peut avoir 19 colonnes de largeur et 191 rangées."]
["Feuille de calcul des dépenses en capital selon la comptabilité de caisse"]
[]
["préparée par :"]
[]
["Direction du développement de l'agriculture"]
["Unité de la gestion des entreprises"]
["Ministère de l’Agriculture, de l’Alimentation et des Affaires rurales de l’Ontario"]
[]
["Révision : décembre 2016"]
["AVIS"]
["L’information qui figure dans le présent document est tirée de sources considérées comme fiables. L’utilisateur de cette feuille de calcul assume les responsabilités qui en découlent. "]
[]
["Il est permis de reproduire ce tableau ou son contenu, intégralement ou en partie, en indiquant sa source."]
[]
["TABLE DES MATIÈRES"]
["Cliquer sur les titres de la table des matières ci-dessous pour aller à la partie correspondante :"]
[" - Objet et portée de la feuille de calcul des investissements en capital, comptabilité de caisse"]
[" - Taux de rendement requis (valeur actuelle)"]
[" - Données à saisir"]
[" - Feuille de calcul des investissements en capital, comptabilité de caisse, guide d’utilisation"]
[" - Saisie des données"]
[" - Désavantages et avantages"]
[" - Page Rapports – Analyse du flux de trésorerie"]
[" - Page Impôts"]
[" - Tableau des taux de déduction pour amortissement (DPA)"]
[]
["OBJET ET PORTÉE DE LA FEUILLE DE CALCUL DES INVESTISSEMENTS EN CAPITAL, COMPATIBILITÉ DE CAISSE"]
[]
[]
["L’objet de cette feuille de calcul est de fournir aux agriculteurs et aux conseillers agricoles un outil fiable d’aide à la prise de décision des gestionnaires en matière d’investissements en capital."]
[]
["Elle se divise en quatre (4) parties :"]
[]
["1. Saisie des données "]
["2. Rapport des investissements selon la comptabilité de caisse : analyse du flux de trésorerie sur 15 ans (avant et après impôts) "]
["3. Sommaire des impôts sur l’investissement, comparaison des obligations fiscales d’une entreprise à propriétaire unique, d’une société en nom collectif et d’une société, horizon de planification de 15 ans"]
["4. Tableau des taux de déduction pour amortissement "]
[]
["Dans la partie de la feuille de calcul sur l’analyse des investissements :"]
["· on examine les revenus et les dépenses résultant de l’investissement "]
["· on examine les répercussions fiscales de l’investissement"]
["· on peut inscrire des investissements dans trois différents domaines pour un même scénario"]
["· on peut inscrire un financement provenant :"]
["· de fonds personnels"]
["· d’un, de deux ou de trois prêts"]
["· on peut examiner la valeur résiduelle ou de revente des investissements"]
["· on tient compte de l’évolution de la valeur de l’argent au cours du temps"]
["· on tient compte de la valeur actualisée nette de l’investissement"]
[]
["TAUX DE RENDEMENT REQUIS"]
["Toutes les valeurs actualisées qui apparaissent dans la feuille de calcul sont calculées à partir d’un certain « taux de rendement requis ». Ce taux sert à actualiser les revenus, coûts et capitaux à venir inscrits dans la feuille de calcul (les ramener à leur valeur actuelle)."]
[]
["De nombreux articles ont été écrits sur la question des taux d’actualisation et de nombreux avis contradictoires ont été avancés sur ce qui devrait être pris en compte dans ces calculs. Dans la présente feuille de calcul, on laisse à l’exploitant agricole le soin de décider du taux de rendement qu’il considère approprié. À cet effet, l’indicateur le plus fréquemment utilisé est le taux d’intérêt actuel ou à long terme sur le marché monétaire. On corrige ce chiffre à la hausse ou à la baisse en fonction de facteurs tels que le risque, le coût de renonciation, le rendement de l’investissement, le rendement de la main-d’œuvre et de la gestion, le rendement après impôt, etc. Ici les agriculteurs doivent évaluer l’état du secteur agricole, de l’économie dans son ensemble, de leur propre efficience comme gestionnaires d’exploitation ainsi que tous les facteurs indiqués plus haut, et ils doivent faire une estimation aussi précise que possible de leur propre taux de rendement requis. Voir si on arrive à la même conclusion en partant de taux de rendements différents."]
[]
["DONNÉES À SAISIR"]
["Pour remplir la partie Saisie des données, on conseille de se munir des informations suivantes :"]
["Dernière déclaration d’impôt du producteur."]
["Documents d’actualisation du programme"]
[" - bulletins sectoriels"]
[" - magazines de producteurs"]
[" - budgets d’entreprise"]
[" - analyses des activités commerciales"]
[" - informations sur les crédits et prêts bancaires"]
["REMARQUE :"]
["La partie Saisie des données se présente sous deux (2) formats :"]
[]
["1) En bleu : renseignements relatifs au producteur, qui peuvent être modifiés ou remplacés;"]
["2) En noir : titres de rubriques, renseignements utiles, ou cases servant à des calculs."]
[]
["Placer le curseur sur les cases qui ont un triangle rouge dans leur coin supérieur droit pour pouvoir lire les commentaires."]
[]
["FEUILLE DE CALCUL DES INVESTISSEMENTS EN CAPITAL, COMPTABILITÉ DE CAISSE"]
["GUIDE D’UTILISATION"]
[]
["La présente feuille de calcul s’adresse aux gestionnaires, et elle est un outil d’aide à la prise de décision en matière d’investissements en capital."]
[]
["Saisie des données : "]
[]
["Remplir les cases A9 à G47 avant de passer aux cases K5 à O59."]
[]
["Case C10 - Nom de la ferme ou du producteur"]
[]
["Case D12 - Description de l’investissement"]
[]
["Case D16 - Taux de rendement qu’on pourrait obtenir en investissant la même somme dans un autre instrument connu (p. ex. certificats de placement garantis de la banque, obligations d’épargne, etc.)"]
[]
[]
["Case H16 - Nombre d’années sur lesquelles vous souhaitez effectuer la planification (maximum de 15 ans). Inscrire un chiffre entre 1 et 15. Il est recommandé de laisser 15."]
[" "]
["Case D17 - Montant que le producteur investira à partir de ses économies ou en liquidités."]
[]
["Case F19 - Revenu imposable actuel de l’entreprise"]
["Remarque : Si le producteur est une société en nom collectif ou une société, inscrire le revenu imposable de l’entreprise. Ce chiffre est important parce qu’il se répercute sur les barèmes d’imposition de l’investissement supplémentaire."]
[]
["Case E21 – Indiquer le code de type d’entreprise. 1 pour une entreprise à propriétaire unique, 2 pour une société en nom collectif ou un fractionnement du revenu, 3 pour une société. Ce chiffre est également important parce qu’il se répercute aussi sur le barème d’imposition de l’investissement supplémentaire. "]
[]
["Case E23 - Si vous avez écrit 2 (société en nom collectif) à la case E21, indiquer le nombre de partenaires ou de personnes qui se partagent le revenu imposable de l’entreprise."]
[]
["Saisie des données : Achats et prêts "]
[]
["Dans cette zone, on peut saisir trois achats :"]
["Achats nos 1, 2 et 3 - Décrire les achats (dans les cases D29, D36 et D43). Inscrire (dans les cases D30, D37 et D44) la valeur en dollars que le producteur pourra consacrer à chacun des achats d’actifs. Dans les cases D31, D38 et D45, indiquer le pourcentage de chaque investissement qui est admissible à la déduction pour amortissement (dépréciation) aux fins de l’impôt sur le revenu de l’entreprise. Dans les cases D32, D39 et D46, indiquer le pourcentage de ce montant qui est admissible la première année (année de l’acquisition). "]
[]
["Dans les cases D33, D40 et D47, indiquer le taux de déduction pour amortissement (dépréciation) par an."]
[]
["Prêts : Le programme permet au producteur d’inscrire jusqu’à trois prêts liés à l’investissement. À noter que le calculateur de prêts ne fonctionne que si le taux d’intérêt et le terme sont supérieurs à zéro. Pour un taux d’intérêt nul, inscrire 0,001."]
[]
["Prêt no 1, prêt no 2, prêt no 3 - Dans chaque cas, inscrire le montant en dollars (cases G29, G36 et G43), le taux d’intérêt réel (cases G30, G37 et G44) et le terme en années (cases G31, G38 et G45). Inscrire le nombre de versements par année (cases G32, G39 et G49). "]
["Indiquer le nombre de fois par année que les intérêts sont composés (cases G33, G40 et G47). Les intérêts sur les hypothèques sont généralement composés deux fois par an. Pour les autres types de prêts, ils sont généralement composés 12 fois par an. "]
[]
["Remarque : Il n’est pas nécessaire d’inscrire trois prêts. Le prêt no 1 peut représenter la totalité des sommes empruntées en vue de l’investissement. "]
[]
["Saisie des avantages et désavantages"]
["Cette section est divisée en 6 parties dont 3 pour les désavantages et 3 pour les avantages."]
[]
["Désavantages :"]
[]
["Coûts d'exploitation supplémentaires - Dans cette partie, on peut saisir 13 types de coûts d'exploitation directs aux lignes 5 à 17. Le programme permet d’inscrire une description de la dépense, de corriger pour l’inflation (la déflation étant négative) et le montant annuel. Ce facteur est un pourcentage annuel moyen d’augmentation ou de diminution que le producteur budgétise sur la période de planification."]
[]
[]
["Revenu réduit "]
["Cette partie calcule automatiquement les intérêts perdus sur le versement effectué par le producteur à partir de ses économies ou en liquidités. Elle comporte également trois (3) lignes vides où l’on peut inscrire d’autres entrées s’il y a d’autres risques de réduction des revenus. Donner une description, indiquer le rendement prévu si les fonds avaient été investis autrement, et le montant annuel correspondant."]
["Coûts non annuels"]
["Dans cette partie, indiquer toute dépense non annuelle effectuée pendant une année donnée de la période de planification (p. ex. réparation majeure pendant l’année 10). Indiquer l’année (cases M28 à 31) et le montant (cases O28 à 31). On peut ajouter une description (cases K28 à 31)."]
[]
["Avantages :"]
[]
["Vente ou aliénation d’immobilisations"]
["Dans cette partie, indiquer toute vente non annuelle effectuée pendant une année donnée de la période de planification (p. ex. vente de matériel usagé). "]
[]
["Indiquer l’année (cases M37 à 40) et le montant (cases O37 à 40). On peut ajouter une description (cellules K37 à 40)."]
[]
["Revenu annuel supplémentaire "]
["Cette section est divisée en deux (2) parties :"]
[]
["Produits d’exploitation - Semblable à la partie sur les coûts d’exploitation, le programme permet de décrire et d’inscrire jusqu’à 9 types de revenus. Décrire et indiquer le taux d’inflation ou de déflation et le montant correspondant."]
[]
["Coûts réduits - Le programme permet d’inscrire jusqu’à 4 types de coûts que l’investissement permettrait de réduire (p. ex. coûts de location, tarifs à forfait). Décrire et indiquer le taux d’inflation ou de déflation et le montant correspondant."]
[]
["PAGE DES RAPPORTS - FEUILLE DE CALCUL DES INVESTISSEMENTS EN CAPITAL, COMPTABILITÉ DE CAISSE"]
[" (ANALYSE DU FLUX DE TRÉSORERIE)"]
[]
["Cette page ne nécessite aucune entrée. Elle résume les informations inscrites sur la page Saisie des données. "]
[]
["Dans la partie du haut, les rangées 7 à 14 contiennent les renseignements de base et les détails des prêts liés à chacune des catégories d’achat. "]
[]
["Dans la partie suivante, les rangées 19 à 30 contiennent les détails des versements de capital et d’intérêts de chacun des prêts."]
[]
["L’utilisateur doit bien comprendre l’effet de l’« actualisation » et la valeur future des sommes d’argent. "]
[]
["À noter que dans la colonne E, les rangées 19 à 21 montrent le montant réel du capital total emprunté. Puis dans la colonne C, les rangées 23 à 25 montrent la valeur actualisée nette des versements à venir (capital et intérêts versés pendant les années 1 à 15) calculée à partir du taux de rendement requis qui a été saisi dans la page Saisie des données. Voici une autre façon de voir les choses : vous faites un investissement, ce qui vous obligera à effectuer une suite de versements à venir. Cependant cet investissement produit un revenu supérieur aux versements à effectuer; donc vous pouvez soustraire les versements réels à effectuer du montant des profits engendrés par l’investissement de départ. Une autre façon simple d’aborder le concept : vous empruntez un dollar que vous devrez rembourser en une année. Ce dollar vous a rapporté 10 cents, de sorte que le montant réel à rembourser est très voisin de 90 cents en dollars d’aujourd’hui."]
[]
["Dans les colonnes E à S, pendant les 12 mois, on compte des sorties de liquidités. Ces chiffres sont en dollars actuels, et ils ne sont donc pas actualisés. L’effet de l’actualisation n’est pris en compte que dans la colonne de la valeur actualisée nette."]
[]
["Aux rangées 32 à 81, les avantages et les désavantages inscrits sur la page Saisie des données, sont convertis en flux de trésorerie sur la période de 15 ans. La colonne D montre le taux annuel d’inflation prévu. Les montants saisis sont corrigés en conséquence (augmentés ou réduits) chaque année de la période de planification."]
[]
["La rangée 55 montre le total des désavantages et la rangée 84 le total des avantages. Les désavantages sont soustraits des avantages et le gain net (ou la perte nette) apparaît à la rangée 86. Le chiffre qui représente le rendement global de l’investissement apparaît à la case C86. C’est la perte nette ou le gain net exprimé en valeur actualisée nette. Ce nombre représente le total de la période de planification, quelle que soit la durée de celle-ci, en dollars actuels."]
[]
[]
["Les rangées 89 à 107 permettent d’évaluer l’effet de l’impôt et du type d’entreprise choisi "]
["sur le flux de liquidités chaque année de la période de planification. Aux rangées 94 à 101, le tableur ajuste les valeurs de taux de déduction pour amortissement de chacun des achats et calcule le montant admissible disponible pour l’amortissement comme une dépense admissible à la déduction pour amortissement pour cette même année. Il est important de savoir que le programme est conçu pour permettre d’amortir 100 % du montant des achats de bétail la première année. Pour le bétail, il est important d’indiquer un taux d’amortissement admissible de 100 % la première année. "]
[]
["À cette étape, aux colonnes C et S, le tableur a calculé le gain net ou la perte nette en liquidités (qui apparaît à la rangée 86) et l’écart (positif ou négatif) du taux de déduction pour amortissement à partir duquel l’utilisateur peut modifier le montant d’impôt à payer par l’exploitation (rangée 103)."]
[" "]
["Les étapes qui suivent portent sur un concept important du programme qui doit être bien compris. Le programme part du revenu imposable actuel (montant qui apparaît à la case C105). Il s’agit ici du revenu imposable de l’exploitation avant l’investissement. Le programme ajoute au revenu imposable actuel le gain net ou la perte nette qui apparaît à la rangée 86, puis il calcule l’impôt à payer après l’investissement selon les taux d’imposition du type d’entreprise choisi, et il montre le nouvel impôt à payer à la ligne 107. "]
[]
["Il produit ensuite un sommaire annuel à partir de l’ensemble de ces informations. La rangée 109 Position de trésorerie nette (avant impôt) (y compris les versements de capital) est identique à la rangée 86 Gain net ou perte nette. "]
["À ce nombre est ajoutée l’augmentation ou la diminution de l’impôt à payer qui apparaît à la rangée 112. L’augmentation ou la diminution de l’impôt à payer est simplement l’écart entre l’impôt à payer avant l’investissement (case C107) et l’impôt à payer après l’investissement pour chacune des années de planification. "]
[]
["Rangée 114 - La position de trésorerie nette après paiement des taxes et du capital est donc égale à :"]
[]
["Revenu imposable avant (case C105)"]
["Moins : Impôt à payer avant (case C107)",null,null,"  "]
["Plus : Gain ou perte nette de trésorerie (rangée 109)"]
["Moins : Augmentation (ou diminution) de l’impôt à payer (rangée 112)"]
[]
["Rangée 116 - Le changement net de trésorerie résultant de l’investissement est dont égal à :"]
[]
["Rangée 114 - Position de trésorerie nette après paiement des taxes et du capital"]
["Plus : Revenu imposable avant (case C105)"]
["Moins : Impôt à payer avant (case C107)",null,null," "]
[]
["Rangée 117 - L’écart « CUMULÉ » de chaque année (à partir de l’année 2) est le changement net cumulé de trésorerie, c’est-à-dire la somme des résultats de la rangée 116 (écarts nets de trésorerie résultant de l’investissement) des années précédentes."]
["Les rangées 114 et 116 revêtent une grande importance pour l’investisseur parce qu’elles indiquent à partir de quand il peut s’attendre à ce que l’investissement produise un rendement positif, et à partir de quand les pertes antérieures seront recouvrées. "]
[]
["Page Impôts"]
["Cette page permet de comparer les implications fiscales du type d’entreprise choisi. Elle indique le même investissement et compare les montants d’impôt à payer avant et après pour les trois types d’entreprises : entreprise à propriétaire unique, société en nom collectif et société."]
[]
["Tableau des taux de DPA"]
["Cette page contient des informations sur les taux d’imposition spécifiques visant divers types d’investissement en capital. Dans la saisie de données l’utilisateur pourra s’en servir pour remplir les parties sur l’investissement, le pourcentage de capital cumulé et le pourcentage admissible à la DPA."]

{"sheet":"Saisie des données","index":1,"n_rows":59,"n_cols":17,"rows_kept":59,"cut":false,"hidden":false,"merged":[]}
[null,null,null,null,null,null,null,null,null,null," COÛTS SUPPLÉMENTAIRES ET RENDEMENTS RÉDUITS"]
[null,null,null,"Ministère de l’Agriculture, de l’Alimentation et des Affaires rurales",null,null,null,null,null,null,null,null,null,null,null,null,"REMARQUE :"]
[null,null,null,"DIRECTION DU DÉVELOPPEMENT DE L’AGRICULTURE",null,null,null,null,null,"COÛTS D’EXPLOITATION SUPPLÉMENTAIRES",null,null,"TAUX D’INFLATION",null," MONTANT",null,"Les cases à remplir vont de la ligne 1 à la ligne 60"]
[null,null,null,"UNITÉ DE LA GESTION DES ENTREPRISES"]
[null,null,null,null,null,null,null,null,null,null,"Aliments",null,0," %","$ 160 000"]
[null,null,null,null,null,null,null,null,null,null,"Santé et reproduction",null,2," %","$ 900"]
[null,null,"Feuille de calcul des dépenses en capital selon la comptabilité de caisse",null,null,null,null,null,null,null,"Commercialisation",null,2," %","$ 9 320"]
[null,null,null,null,null,null,null,null,null,null,"Électricité téléphone",null,3," %","$ 3 540"]
[null,null,null,null,null,null,null,null,null,null,"Réparations et entretien",null,3," %","$ 4 260"]
[null,"NOM :","Ferme Jolène et Joe",null,null,"DATE :",{"$f":"NOW()","v":"2024-11-29T16:36:30.850"},null,null,null,"Main-d’œuvre",null,2," %","$ 8 000"]
[null,null,null,null,null,null,null,null,null,null,"Intérêt d’exploitation",null,0," %","$ 1 840"]
[null,"INVESTISSEMENT PRÉVU",null,"Porcherie d’engraissement-finition de 2000 têtes",null,null,null,null,null,null,"Achats de bétail",null,0," %","$ 140 000"]
[null,null,null,null,null,null,null,null,null,null,"Taxes et assurance",null,2," %","$ 2 840"]
[null,"- RENSEIGNEMENTS DE BASE -",null,null,null,null,null,null,null,null,".",null,0," %","$ 0"]
[null,null,null,null,null,null,null,null,null,null,".",null,0," %","$ 0"]
[null,"TAUX DE RENDEMENT REQUIS :",null,5," %","NOMBRE D’ANNÉES DE PROJECTION :",null,15,null,null,".",null,0," %","$ 0"]
[null,"VERSEMENT INITIAL :",null,"$ 200 000 ",null," (MAXIMUM 15 ANS)",null,null,null,null,".",null,0," %","$ 0"]
[null,null,null,null,null,null,null,null,null,"REVENU RÉDUIT",null,null,"TAUX D’INFLATION",null," MONTANT"]
[null,"REVENU IMPOSABLE ACTUEL",null,null,null,"$ 40 000 "]
[null,null,null,null,null,"Codes de types d’entreprise",null,null,null,null,"Perte d’intérêt sur le versement initial",null,"VOTRE TAUX DE RENDEMENT",null,"$ 10 000"]
[null,"TYPE D’ENTREPRISE (inscrire le code chiffré)",null,null,2,"Entreprise à propriétaire unique",1," ",null,null,".",null,0," %","$ 0"]
[null,null,null,null,null,"Société en nom collectif",2," ",null,null,".",null,0," %","$ 0"]
[null,"Remarque : S’il s’agit d’une société en nom collectif, indiquer le nombre de partenaires",null,null,2,"Société",3," ",null,null,".",null,0," %","$ 0"]
[null,null,null,null,null,null,null,null,null,"COÛTS NON ANNUELS"]
[]
[null," - ACHATS D’IMMOBILISATIONS -",null,null,null,"- PRÊTS -",null,null,null,null,"OBJET",null,"ANNÉES (1 à 15)",null," MONTANT"]
[]
[null,"ACHAT DE L’ACTIF no 1",null,null,null,"PRÊT no 1 :",null,null,null,null,"Réparations majeures",null,10,null,"$ 50 000"]
[null,null," - DESCRIPTION :","Matériel",null," PRÊT REQUIS :","$ 42 000 ",null,null,null,".",null,0,null,"$ 0"]
[null,null," - MONTANT :","$ 242 000 ",null," TAUX D’INTÉRÊT :",5," %",null,null,".",null,0,null,"$ 0"]
[null,null," - POURCENTAGE ADMISSIBLE À LA DPA : ",100," %"," TERME (ANNÉES) :",10,null,null,null,".",null,0,null,"$ 0"]
[null,null," - % DPA ANNÉE 1 : ",50," %"," VERSEMENTS/ANNÉE",12]
[null,null," - TAUX DE DPA EN % : ",20," %"," COMPOSÉS/ANNÉE",12,null,null,null,"COÛTS RÉDUITS ET RENDEMENTS SUPPLÉMENTAIRES"]
[]
[null,"ACHAT DE L’ACTIF no 2",null,null,null,"PRÊT no 2 :",null,null,null,null,"VENTE OU ALIÉNATION D’IMMOBILISATIONS",null,"ANNÉES (1 à 15)",null," MONTANT"]
[null,null," - DESCRIPTION :","Édifice",null," PRÊT REQUIS :","$ 688 000 "]
[null,null," - MONTANT :","$ 688 000 ",null," TAUX D’INTÉRÊT :",5," %",null,null,".",null,0,null,"$ 0"]
[null,null," - POURCENTAGE ADMISSIBLE À LA DPA : ",100," %"," TERME (ANNÉES) :",20,null,null,null,".",null,0,null,"$ 0"]
[null,null," - % DPA ANNÉE 1 : ",50," %"," VERSEMENTS/ANNÉE",12,null,null,null,".",null,0,null,"$ 0"]
[null,null," - TAUX DE DPA EN % : ",10," %"," COMPOSÉS/ANNÉE",12,null,null,null," "]
[null,null,null,null,null,null,null,null,null,"REVENU ANNUEL SUPPLÉMENTAIRE"]
[null,"ACHAT DE L’ACTIF no 3",null,null,null,"PRÊT no 3 :"]
[null,null," - DESCRIPTION :",null,null," PRÊT REQUIS :","$ 0",null,null,null,"PRODUITS D’EXPLOITATION",null,"TAUX D’INFLATION",null," MONTANT"]
[null,null," - MONTANT :",null,null," TAUX D’INTÉRÊT :",5," %"]
[null,null," - POURCENTAGE ADMISSIBLE À LA DPA : ",null," %"," TERME (ANNÉES) :",7,null,null,null,"VENTES SUPPLÉMENTAIRES",null,0," %","$ 360 000"]
[null,null," - % DPA ANNÉE 1 : ",null," %"," VERSEMENTS/ANNÉE",12,null,null,null,".",null,0," %","$ 0"]
[null,null," - TAUX DE DPA EN % : ",null," %"," COMPOSÉS/ANNÉE",12,null,null,null,".",null,0," %","$ 0"]
[null,null,null,null,null,null,null,null,null,null,".",null,0," %","$ 0"]
[null,null,null,null,null,null,null,null,null,null,".",null,0," %","$ 0"]
[null,null,null,null,null,null,null,null,null,null,".",null,0," %","$ 0"]
[null,null,null,null,null,null,null,null,null,null,".",null,0," %","$ 0"]
[null,null,null,null,null,null,null,null,null,null,".",null,0," %","$ 0"]
[null,null,null,null,null,null,null,null,null,null,".",null,0," %","$ 0"]
[null,null,null,null,null,null,null,null,null,null,"COÛTS RÉDUITS",null,"TAUX D’INFLATION",null," MONTANT"]
[]
[null,null,null,null,null,null,null,null,null,null,".",null,0," %","$ 0"]
[null,null,null,null,null,null,null,null,null,null,".",null,0," %","$ 0"]
[null,null,null,null,null,null,null,null,null,null,".",null,0," %","$ 0"]
[null,null,null,null,null,null,null,null,null,null,".",null,0," %","$ 0"]

{"sheet":"Rapports","index":2,"n_rows":194,"n_cols":35,"rows_kept":194,"cut":false,"hidden":false,"merged":[]}
[]
[null,null,null,null,null,null,null,null,null,null,null,"Ministère de l’Agriculture, de l’Alimentation et des Affaires rurales"]
[null,null,null,null,"FEUILLE DE CALCUL DES INVESTISSEMENTS EN CAPITAL, COMPTABILITÉ DE CAISSE",null,null,null,null,null,null,"DIRECTION DU DÉVELOPPEMENT DE L’AGRICULTURE"]
[null,null,null,null,null,null,null,null,null,null,null,"UNITÉ DE LA GESTION DES ENTREPRISES"]
[]
[" - Information de base -",null,null," - Prêts -",null,null,null,null,null,null,null,null,null,null,null,"DATE :",{"$f":"NOW()","v":"2024-11-29T16:36:30.850"}]
[null,null,null,null,"PRÊT no 1",null,null,null,"PRÊT no 2",null,null,null,"PRÊT no 3"]
["Taux de rendement requis (%)",null,5," Prêt requis",null,null,"$ 42 000 "," Prêt requis",null,null,"$ 688 000"," Prêt requis",null,null,"$ 0 "]
["Versement initial effectué",null,"$ 200 000 "," Taux d’intérêt",null,null,5," Taux d’intérêt",null,null,5," Taux d’intérêt",null,null,5]
["Nombre d’années de la projection",null,15," Terme (années)",null,null,10," Terme (années)",null,null,20," Terme (années)",null,null,7]
["(Maximum 15 ans)",null,null," Versements/année",null,null,12," Versements/année",null,null,12," Versements/année",null,null,12]
["Investissement total",null,"$ 930 000 "," Périodes de composition/année",null,null,12," Périodes de composition/année",null,null,12," Périodes de composition/année",null,null,12]
[null,null,null," Versement du prêt",null,null,445.48," Versement du prêt",null,null,4540.5," Versement du prêt",null,null,0]
[null,"Seul le nombre d’années de projection indiqué ci-dessous est pris en compte dans la colonne de calcul de la valeur actualisée nette.",null," Versements annuels du prêt",null,null,5345.7," Versements annuels du prêt",null,null,54485.95," Versements annuels du prêt",null,null,0]
[null," "]
[null,null,"Valeur actualisée nette",null,"Années >",null,null,"Années",null,null,null,null,null,null,null,null,null,null,null,null,"NPV by projection years selected"]
[null,null,null,null,1,2,3,4,5,6,7,8,9,10,11,12,13,14,15,null,"1 year","2 year","3 year","4 year","5 year","6 year","7 year","8 year","9 year","10 year","11 year","12 year","13 year","14 year","15 year"]
[]
[null,"DÉSAVANTAGES","Solde de capital no 1",null,"$ 42 000","$ 38 679","$ 35 188","$ 31 518","$ 27 661","$ 23 606","$ 19 344","$ 14 864","$ 10 154","$ 5 204","$ 0","$ 0","$ 0","$ 0","$ 0"]
[null,null,"Solde de capital no 2",null,"$ 688 000","$ 667 447","$ 645 843","$ 623 134","$ 599 262","$ 574 169","$ 547 793","$ 520 067","$ 490 923","$ 460 287","$ 428 084","$ 394 234","$ 358 651","$ 321 248","$ 281 932"]
[null,null,"Solde de capital no 3",null,"$ 0","$ 0","$ 0","$ 0","$ 0","$ 0","$ 0","$ 0","$ 0","$ 0","$ 0","$ 0","$ 0","$ 0","$ 0"]
[null,"Investissement supplémentaire",null,null,null,null,null,null,null,null,null,null,null,null,null,null,null,null,null,null,{"$f":"NPV($C$7*0.01,E22)","v":0},{"$f":"NPV($C$7*0.01,E22:F22)","v":0},{"$f":"NPV($C$7*0.01,E22:G22)","v":0},{"$f":"NPV($C$7*0.01,E22:H22)","v":0},{"$f":"NPV($C$7*0.01,E22:I22)","v":0},{"$f":"NPV($C$7*0.01,E22:J22)","v":0},{"$f":"NPV($C$7*0.01,E22:K22)","v":0},{"$f":"NPV($C$7*0.01,E22:L22)","v":0},{"$f":"NPV($C$7*0.01,E22:M22)","v":0},{"$f":"NPV($C$7*0.01,E22:N22)","v":0},{"$f":"NPV($C$7*0.01,E22:O22)","v":0},{"$f":"NPV($C$7*0.01,E22:P22)","v":0},{"$f":"NPV($C$7*0.01,E22:Q22)","v":0},{"$f":"NPV($C$7*0.01,E22:R22)","v":0},{"$f":"NPV($C$7*0.01,E22:S22)","v":0}]
[null,"Capital - Prêt no 1","$ 31 788 ",null,"$ 3 321","$ 3 491","$ 3 670","$ 3 857","$ 4 055","$ 4 262","$ 4 480","$ 4 709","$ 4 950","$ 5 204","$ 0","$ 0","$ 0","$ 0","$ 0",null,0,0,0,0,0,0,0,0,0,0,0,0,0,0,0]
[null,"Capital - Prêt no 2","$ 295 895 ",null,"$ 20 553","$ 21 604","$ 22 710","$ 23 871","$ 25 093","$ 26 376","$ 27 726","$ 29 144","$ 30 636","$ 32 203","$ 33 850","$ 35 582","$ 37 403","$ 39 316","$ 41 328",null,0,0,0,0,0,0,0,0,0,0,0,0,0,0,0]
[null,"Capital - Prêt no 3","$ 0 ",null,"$ 0","$ 0","$ 0","$ 0","$ 0","$ 0","$ 0","$ 0","$ 0","$ 0","$ 0","$ 0","$ 0","$ 0","$ 0"]
[]
[null,"Coûts d’exploitation supplémentaires",null,null,null,null,null,null,null,null,null,null,null,null,null,null,null,null,null,null,0,{"$f":"NPV($C$7*0.01,E27:F27)","v":0},{"$f":"NPV($C$7*0.01,E27:G27)","v":0},{"$f":"NPV($C$7*0.01,E27:H27)","v":0},{"$f":"NPV($C$7*0.01,E27:I27)","v":0},{"$f":"NPV($C$7*0.01,E27:J27)","v":0},{"$f":"NPV($C$7*0.01,E27:K27)","v":0},{"$f":"NPV($C$7*0.01,E27:L27)","v":0},{"$f":"NPV($C$7*0.01,E27:M27)","v":0},{"$f":"NPV($C$7*0.01,E27:N27)","v":0},{"$f":"NPV($C$7*0.01,E27:O27)","v":0},{"$f":"NPV($C$7*0.01,E27:P27)","v":0},{"$f":"NPV($C$7*0.01,E27:Q27)","v":0},{"$f":"NPV($C$7*0.01,E27:R27)","v":0},{"$f":"NPV($C$7*0.01,E27:S27)","v":0}]
[null,"Intérêt - Prêt no 1","$ 9 490 ",null,"$ 2 025 ","$ 1 855 ","$ 1 676 ","$ 1 488 ","$ 1 291 ","$ 1 084 ","$ 865 ","$ 636 ","$ 395 ","$ 142 ","$ 0 ","$ 0 ","$ 0 ","$ 0 ","$ 0 ",null,0,0,0,0,0,0,0,0,0,0,0,0,0,0,0]
[null,"Intérêt - Prêt no 2","$ 269 650 ",null,"$ 33 933 ","$ 32 882 ","$ 31 776 ","$ 30 615 ","$ 29 393 ","$ 28 109 ","$ 26 760 ","$ 25 341 ","$ 23 850 ","$ 22 283 ","$ 20 635 ","$ 18 904 ","$ 17 083 ","$ 15 170 ","$ 13 158 ",null,0,0,0,0,0,0,0,0,0,0,0,0,0,0,0]
[null,"Intérêt - Prêt no 3","$ 0 ",null,"$ 0 ","$ 0 ","$ 0 ","$ 0 ","$ 0 ","$ 0 ","$ 0 ","$ 0 ","$ 0 ","$ 0 ","$ 0 ","$ 0 ","$ 0 ","$ 0 ","$ 0 "]
[null,null,null,"Inflation",null,null,null,null,null,null,null,null,null,null,null,null,null,null,null,null,0,{"$f":"NPV($C$7*0.01,E31:F31)","v":0},{"$f":"NPV($C$7*0.01,E31:G31)","v":0},{"$f":"NPV($C$7*0.01,E31:H31)","v":0},{"$f":"NPV($C$7*0.01,E31:I31)","v":0},{"$f":"NPV($C$7*0.01,E31:J31)","v":0},{"$f":"NPV($C$7*0.01,E31:K31)","v":0},{"$f":"NPV($C$7*0.01,E31:L31)","v":0},{"$f":"NPV($C$7*0.01,E31:M31)","v":0},{"$f":"NPV($C$7*0.01,E31:N31)","v":0},{"$f":"NPV($C$7*0.01,E31:O31)","v":0},{"$f":"NPV($C$7*0.01,E31:P31)","v":0},{"$f":"NPV($C$7*0.01,E31:Q31)","v":0},{"$f":"NPV($C$7*0.01,E31:R31)","v":0},{"$f":"NPV($C$7*0.01,E31:S31)","v":0}]
[null,"Aliments","$ 1 660 745 ",0,"$ 160 000","$ 160 000","$ 160 000","$ 160 000","$ 160 000","$ 160 000","$ 160 000","$ 160 000","$ 160 000","$ 160 000","$ 160 000","$ 160 000","$ 160 000","$ 160 000","$ 160 000",null,0,0,0,0,0,0,0,0,0,0,0,0,0,0,0]
[null,"Santé et reproduction","$ 10 578 ",2,"$ 900","$ 918","$ 936","$ 955","$ 974","$ 994","$ 1 014","$ 1 034","$ 1 054","$ 1 076","$ 1 097","$ 1 119","$ 1 141","$ 1 164","$ 1 188",null,0,0,0,0,0,0,0,0,0,0,0,0,0,0,0]
[null,"Commercialisation","$ 109 546 ",2,"$ 9 320","$ 9 506","$ 9 697","$ 9 890","$ 10 088","$ 10 290","$ 10 496","$ 10 706","$ 10 920","$ 11 138","$ 11 361","$ 11 588","$ 11 820","$ 12 056","$ 12 298",null,0,0,0,0,0,0,0,0,0,0,0,0,0,0,0]
[null,"Électricité téléphone","$ 44 355 ",3,"$ 3 540","$ 3 646","$ 3 756","$ 3 868","$ 3 984","$ 4 104","$ 4 227","$ 4 354","$ 4 484","$ 4 619","$ 4 757","$ 4 900","$ 5 047","$ 5 199","$ 5 355",null,0,0,0,0,0,0,0,0,0,0,0,0,0,0,0]
[null,"Réparations et entretien","$ 53 376 ",3,"$ 4 260","$ 4 388","$ 4 519","$ 4 655","$ 4 795","$ 4 939","$ 5 087","$ 5 239","$ 5 396","$ 5 558","$ 5 725","$ 5 897","$ 6 074","$ 6 256","$ 6 444",null,0,0,0,0,0,0,0,0,0,0,0,0,0,0,0]
[null,"Main-d’œuvre","$ 94 030 ",2,"$ 8 000","$ 8 160","$ 8 323","$ 8 490","$ 8 659","$ 8 833","$ 9 009","$ 9 189","$ 9 373","$ 9 561","$ 9 752","$ 9 947","$ 10 146","$ 10 349","$ 10 556",null,0,0,0,0,0,0,0,0,0,0,0,0,0,0,0]
[null,"Intérêt d’exploitation","$ 19 215 ",0.1,"$ 1 840","$ 1 842","$ 1 844","$ 1 846","$ 1 847","$ 1 849","$ 1 851","$ 1 853","$ 1 855","$ 1 857","$ 1 858","$ 1 860","$ 1 862","$ 1 864","$ 1 866",null,0,0,0,0,0,0,0,0,0,0,0,0,0,0,0]
[null,"Achats de bétail","$ 1 453 152 ",0,"$ 140 000","$ 140 000","$ 140 000","$ 140 000","$ 140 000","$ 140 000","$ 140 000","$ 140 000","$ 140 000","$ 140 000","$ 140 000","$ 140 000","$ 140 000","$ 140 000","$ 140 000",null,0,0,0,0,0,0,0,0,0,0,0,0,0,0,0]
[null,"Taxes et assurance","$ 33 381 ",2,"$ 2 840","$ 2 897","$ 2 955","$ 3 014","$ 3 074","$ 3 136","$ 3 198","$ 3 262","$ 3 328","$ 3 394","$ 3 462","$ 3 531","$ 3 602","$ 3 674","$ 3 747",null,0,0,0,0,0,0,0,0,0,0,0,0,0,0,0]
[null,".","$ 0 ",0,"$ 0","$ 0","$ 0","$ 0","$ 0","$ 0","$ 0","$ 0","$ 0","$ 0","$ 0","$ 0","$ 0","$ 0","$ 0",null,0,0,0,0,0,0,0,0,0,0,0,0,0,0,0]
[null,".","$ 0 ",0,"$ 0","$ 0","$ 0","$ 0","$ 0","$ 0","$ 0","$ 0","$ 0","$ 0","$ 0","$ 0","$ 0","$ 0","$ 0",null,0,0,0,0,0,0,0,0,0,0,0,0,0,0,0]
[null,".","$ 0 ",0,"$ 0","$ 0","$ 0","$ 0","$ 0","$ 0","$ 0","$ 0","$ 0","$ 0","$ 0","$ 0","$ 0","$ 0","$ 0",null,0,0,0,0,0,0,0,0,0,0,0,0,0,0,0]
[null,".","$ 0 ",0,"$ 0","$ 0","$ 0","$ 0","$ 0","$ 0","$ 0","$ 0","$ 0","$ 0","$ 0","$ 0","$ 0","$ 0","$ 0",null,0,0,0,0,0,0,0,0,0,0,0,0,0,0,0]
[null,"COÛTS NON ANNUELS","$ 30 696 ","s.o.","$ 0","$ 0","$ 0","$ 0","$ 0","$ 0","$ 0","$ 0","$ 0","$ 50 000","$ 0","$ 0","$ 0","$ 0","$ 0",null,0,0,0,0,0,0,0,0,0,0,0,0,0,0,0]
["Total des coûts supplémentaires",null,"$ 4 115 898 ",null,"$ 390 532","$ 391 189","$ 391 861","$ 392 549","$ 393 254","$ 393 975","$ 394 713","$ 395 469","$ 396 242","$ 447 034","$ 392 499","$ 393 329","$ 394 178","$ 395 048","$ 395 938"]
[]
[null,"Revenu réduit",null,null,null,null,null,null,null,null,null,null,null,null,null,null,null,null,null,null,0,{"$f":"NPV($C$7*0.01,E48:F48)","v":0},{"$f":"NPV($C$7*0.01,E48:G48)","v":0},{"$f":"NPV($C$7*0.01,E48:H48)","v":0},{"$f":"NPV($C$7*0.01,E48:I48)","v":0},{"$f":"NPV($C$7*0.01,E48:J48)","v":0},{"$f":"NPV($C$7*0.01,E48:K48)","v":0},{"$f":"NPV($C$7*0.01,E48:L48)","v":0},{"$f":"NPV($C$7*0.01,E48:M48)","v":0},{"$f":"NPV($C$7*0.01,E48:N48)","v":0},{"$f":"NPV($C$7*0.01,E48:O48)","v":0},{"$f":"NPV($C$7*0.01,E48:P48)","v":0},{"$f":"NPV($C$7*0.01,E48:Q48)","v":0},{"$f":"NPV($C$7*0.01,E48:R48)","v":0},{"$f":"NPV($C$7*0.01,E48:S48)","v":0}]
[null,"Intérêt perdu, versement initial","$ 103 797 "," s.o.","$ 10 000","$ 10 000","$ 10 000","$ 10 000","$ 10 000","$ 10 000","$ 10 000","$ 10 000","$ 10 000","$ 10 000","$ 10 000","$ 10 000","$ 10 000","$ 10 000","$ 10 000",null,0,0,0,0,0,0,0,0,0,0,0,0,0,0,0]
[null,".","$ 0 ",0,"$ 0","$ 0","$ 0","$ 0","$ 0","$ 0","$ 0","$ 0","$ 0","$ 0","$ 0","$ 0","$ 0","$ 0","$ 0",null,0,0,0,0,0,0,0,0,0,0,0,0,0,0,0]
[null,".","$ 0 ",0,"$ 0","$ 0","$ 0","$ 0","$ 0","$ 0","$ 0","$ 0","$ 0","$ 0","$ 0","$ 0","$ 0","$ 0","$ 0",null,0,0,0,0,0,0,0,0,0,0,0,0,0,0,0]
[null,".","$ 0 ",0,"$ 0","$ 0","$ 0","$ 0","$ 0","$ 0","$ 0","$ 0","$ 0","$ 0","$ 0","$ 0","$ 0","$ 0","$ 0",null,0,0,0,0,0,0,0,0,0,0,0,0,0,0,0]
["Total de réduction de revenu",null,"$ 103 797 ",null,"$ 10 000","$ 10 000","$ 10 000","$ 10 000","$ 10 000","$ 10 000","$ 10 000","$ 10 000","$ 10 000","$ 10 000","$ 10 000","$ 10 000","$ 10 000","$ 10 000","$ 10 000"]
[null,null,null,null,null,null,null,null,null,null,null,null,null,null,null,null,null,null,null,null,0,{"$f":"NPV($C$7*0.01,E54:F54)","v":0},{"$f":"NPV($C$7*0.01,E54:G54)","v":0},{"$f":"NPV($C$7*0.01,E54:H54)","v":0},{"$f":"NPV($C$7*0.01,E54:I54)","v":0},{"$f":"NPV($C$7*0.01,E54:J54)","v":0},{"$f":"NPV($C$7*0.01,E54:K54)","v":0},{"$f":"NPV($C$7*0.01,E54:L54)","v":0},{"$f":"NPV($C$7*0.01,E54:M54)","v":0},{"$f":"NPV($C$7*0.01,E54:N54)","v":0},{"$f":"NPV($C$7*0.01,E54:O54)","v":0},{"$f":"NPV($C$7*0.01,E54:P54)","v":0},{"$f":"NPV($C$7*0.01,E54:Q54)","v":0},{"$f":"NPV($C$7*0.01,E54:R54)","v":0},{"$f":"NPV($C$7*0.01,E54:S54)","v":0}]
["TOTAL DES DÉSAVANTAGES",null,"$ 4 219 694 ",null,"$ 400 532","$ 401 189","$ 401 861","$ 402 549","$ 403 254","$ 403 975","$ 404 713","$ 405 469","$ 406 242","$ 457 034","$ 402 499","$ 403 329","$ 404 178","$ 405 048","$ 405 938"]
[]
[]
[]
["AVANTAGES",null,null,null,"Années >",null,null,"Années",null,null,null,null,null,null,null,null,null,null,"PAGE 2"]
["Revenus supplémentaires",null,null,null,1,2,3,4,5,6,7,8,9,10,11,12,13,14,15]
[" Vente ou aliénation d’immobilisations",null,null,null,null,null,null,null,null,null,null,null,null,null,null,null,null,null,null,null,0,{"$f":"NPV($C$7*0.01,E61:F61)","v":0},{"$f":"NPV($C$7*0.01,E61:G61)","v":0},{"$f":"NPV($C$7*0.01,E61:H61)","v":0},{"$f":"NPV($C$7*0.01,E61:I61)","v":0},{"$f":"NPV($C$7*0.01,E61:J61)","v":0},{"$f":"NPV($C$7*0.01,E61:K61)","v":0},{"$f":"NPV($C$7*0.01,E61:L61)","v":0},{"$f":"NPV($C$7*0.01,E61:M61)","v":0},{"$f":"NPV($C$7*0.01,E61:N61)","v":0},{"$f":"NPV($C$7*0.01,E61:O61)","v":0},{"$f":"NPV($C$7*0.01,E61:P61)","v":0},{"$f":"NPV($C$7*0.01,E61:Q61)","v":0},{"$f":"NPV($C$7*0.01,E61:R61)","v":0},{"$f":"NPV($C$7*0.01,E61:S61)","v":0}]
[null,".","$ 0 ","s.o.","$ 0","$ 0","$ 0","$ 0","$ 0","$ 0","$ 0","$ 0","$ 0","$ 0","$ 0","$ 0","$ 0","$ 0","$ 0",null,0,0,0,0,0,0,0,0,0,0,0,0,0,0,0]
[null,".","$ 0 ","s.o.","$ 0","$ 0","$ 0","$ 0","$ 0","$ 0","$ 0","$ 0","$ 0","$ 0","$ 0","$ 0","$ 0","$ 0","$ 0",null,0,0,0,0,0,0,0,0,0,0,0,0,0,0,0]
[null,".","$ 0 ","s.o.","$ 0","$ 0","$ 0","$ 0","$ 0","$ 0","$ 0","$ 0","$ 0","$ 0","$ 0","$ 0","$ 0","$ 0","$ 0"]
[]
[" Produits d’exploitation",null,null,"Inflation",null,null,null,null,null,null,null,null,null,null,null,null,null,null,null,null,0,{"$f":"NPV($C$7*0.01,E66:F66)","v":0},{"$f":"NPV($C$7*0.01,E66:G66)","v":0},{"$f":"NPV($C$7*0.01,E66:H66)","v":0},{"$f":"NPV($C$7*0.01,E66:I66)","v":0},{"$f":"NPV($C$7*0.01,E66:J66)","v":0},{"$f":"NPV($C$7*0.01,E66:K66)","v":0},{"$f":"NPV($C$7*0.01,E66:L66)","v":0},{"$f":"NPV($C$7*0.01,E66:M66)","v":0},{"$f":"NPV($C$7*0.01,E66:N66)","v":0},{"$f":"NPV($C$7*0.01,E66:O66)","v":0},{"$f":"NPV($C$7*0.01,E66:P66)","v":0},{"$f":"NPV($C$7*0.01,E66:Q66)","v":0},{"$f":"NPV($C$7*0.01,E66:R66)","v":0},{"$f":"NPV($C$7*0.01,E66:S66)","v":0}]
[null,"VENTES SUPPLÉMENTAIRES","$ 3 736 677 ",0,"$ 360 000","$ 360 000","$ 360 000","$ 360 000","$ 360 000","$ 360 000","$ 360 000","$ 360 000","$ 360 000","$ 360 000","$ 360 000","$ 360 000","$ 360 000","$ 360 000","$ 360 000",null,0,0,0,0,0,0,0,0,0,0,0,0,0,0,0]
[null,".","$ 0 ",0,"$ 0","$ 0","$ 0","$ 0","$ 0","$ 0","$ 0","$ 0","$ 0","$ 0","$ 0","$ 0","$ 0","$ 0","$ 0",null,0,0,0,0,0,0,0,0,0,0,0,0,0,0,0]
[null,".","$ 0 ",0,"$ 0","$ 0","$ 0","$ 0","$ 0","$ 0","$ 0","$ 0","$ 0","$ 0","$ 0","$ 0","$ 0","$ 0","$ 0",null,0,0,0,0,0,0,0,0,0,0,0,0,0,0,0]
[null,".","$ 0 ",0,"$ 0","$ 0","$ 0","$ 0","$ 0","$ 0","$ 0","$ 0","$ 0","$ 0","$ 0","$ 0","$ 0","$ 0","$ 0",null,0,0,0,0,0,0,0,0,0,0,0,0,0,0,0]
[null,".","$ 0 ",0,"$ 0","$ 0","$ 0","$ 0","$ 0","$ 0","$ 0","$ 0","$ 0","$ 0","$ 0","$ 0","$ 0","$ 0","$ 0",null,0,0,0,0,0,0,0,0,0,0,0,0,0,0,0]
[null,".","$ 0 ",0,"$ 0","$ 0","$ 0","$ 0","$ 0","$ 0","$ 0","$ 0","$ 0","$ 0","$ 0","$ 0","$ 0","$ 0","$ 0",null,0,0,0,0,0,0,0,0,0,0,0,0,0,0,0]
[null,".","$ 0 ",0,"$ 0","$ 0","$ 0","$ 0","$ 0","$ 0","$ 0","$ 0","$ 0","$ 0","$ 0","$ 0","$ 0","$ 0","$ 0",null,0,0,0,0,0,0,0,0,0,0,0,0,0,0,0]
[null,".","$ 0 ",0,"$ 0","$ 0","$ 0","$ 0","$ 0","$ 0","$ 0","$ 0","$ 0","$ 0","$ 0","$ 0","$ 0","$ 0","$ 0",null,0,0,0,0,0,0,0,0,0,0,0,0,0,0,0]
[null,".","$ 0 ",0,"$ 0","$ 0","$ 0","$ 0","$ 0","$ 0","$ 0","$ 0","$ 0","$ 0","$ 0","$ 0","$ 0","$ 0","$ 0",null,0,0,0,0,0,0,0,0,0,0,0,0,0,0,0]
["Total des revenus supplémentaires",null,"$ 3 736 677 ",null,"$ 360 000","$ 360 000","$ 360 000","$ 360 000","$ 360 000","$ 360 000","$ 360 000","$ 360 000","$ 360 000","$ 360 000","$ 360 000","$ 360 000","$ 360 000","$ 360 000","$ 360 000"]
[" Coûts réduits",null,null,null,null,null,null,null,null,null,null,null,null,null,null,null,null,null,null,null,0,{"$f":"NPV($C$7*0.01,E77:F77)","v":0},{"$f":"NPV($C$7*0.01,E77:G77)","v":0},{"$f":"NPV($C$7*0.01,E77:H77)","v":0},{"$f":"NPV($C$7*0.01,E77:I77)","v":0},{"$f":"NPV($C$7*0.01,E77:J77)","v":0},{"$f":"NPV($C$7*0.01,E77:K77)","v":0},{"$f":"NPV($C$7*0.01,E77:L77)","v":0},{"$f":"NPV($C$7*0.01,E77:M77)","v":0},{"$f":"NPV($C$7*0.01,E77:N77)","v":0},{"$f":"NPV($C$7*0.01,E77:O77)","v":0},{"$f":"NPV($C$7*0.01,E77:P77)","v":0},{"$f":"NPV($C$7*0.01,E77:Q77)","v":0},{"$f":"NPV($C$7*0.01,E77:R77)","v":0},{"$f":"NPV($C$7*0.01,E77:S77)","v":0}]
[null,".","$ 0 ",0,"$ 0","$ 0","$ 0","$ 0","$ 0","$ 0","$ 0","$ 0","$ 0","$ 0","$ 0","$ 0","$ 0","$ 0","$ 0",null,0,0,0,0,0,0,0,0,0,0,0,0,0,0,0]
[null,".","$ 0 ",0,"$ 0","$ 0","$ 0","$ 0","$ 0","$ 0","$ 0","$ 0","$ 0","$ 0","$ 0","$ 0","$ 0","$ 0","$ 0",null,0,0,0,0,0,0,0,0,0,0,0,0,0,0,0]
[null,".","$ 0 ",0,"$ 0","$ 0","$ 0","$ 0","$ 0","$ 0","$ 0","$ 0","$ 0","$ 0","$ 0","$ 0","$ 0","$ 0","$ 0",null,0,0,0,0,0,0,0,0,0,0,0,0,0,0,0]
[null,".","$ 0 ",0,"$ 0","$ 0","$ 0","$ 0","$ 0","$ 0","$ 0","$ 0","$ 0","$ 0","$ 0","$ 0","$ 0","$ 0","$ 0",null,0,0,0,0,0,0,0,0,0,0,0,0,0,0,0]
[" Total des coûts réduits",null,"$ 0 ",null,"$ 0","$ 0","$ 0","$ 0","$ 0","$ 0","$ 0","$ 0","$ 0","$ 0","$ 0","$ 0","$ 0","$ 0","$ 0"]
[null,null,null,null,null,null,null,null,null,null,null,null,null,null,null,null,null,null,null,null,{"$f":"NPV($C$7*0.01,E83)","v":0},{"$f":"NPV($C$7*0.01,E83:F83)","v":0},{"$f":"NPV($C$7*0.01,E83:G83)","v":0},{"$f":"NPV($C$7*0.01,E83:H83)","v":0},{"$f":"NPV($C$7*0.01,E83:I83)","v":0},{"$f":"NPV($C$7*0.01,E83:J83)","v":0},{"$f":"NPV($C$7*0.01,E83:K83)","v":0},{"$f":"NPV($C$7*0.01,E83:L83)","v":0},{"$f":"NPV($C$7*0.01,E83:M83)","v":0},{"$f":"NPV($C$7*0.01,E83:N83)","v":0},{"$f":"NPV($C$7*0.01,E83:O83)","v":0},{"$f":"NPV($C$7*0.01,E83:P83)","v":0},{"$f":"NPV($C$7*0.01,E83:Q83)","v":0},{"$f":"NPV($C$7*0.01,E83:R83)","v":0},{"$f":"NPV($C$7*0.01,E83:S83)","v":0}]
["TOTAL DES AVANTAGES",null,"$ 3 736 677 ",null,"$ 360 000","$ 360 000","$ 360 000","$ 360 000","$ 360 000","$ 360 000","$ 360 000","$ 360 000","$ 360 000","$ 360 000","$ 360 000","$ 360 000","$ 360 000","$ 360 000","$ 360 000"]
[null,null,null,null,null,null,null,null,null,null,null,null,null,null,null,null,null,null,null,null,0,{"$f":"NPV($C$7*0.01,E85:F85)","v":0},{"$f":"NPV($C$7*0.01,E85:G85)","v":0},{"$f":"NPV($C$7*0.01,E85:H85)","v":0},{"$f":"NPV($C$7*0.01,E85:I85)","v":0},{"$f":"NPV($C$7*0.01,E85:J85)","v":0},{"$f":"NPV($C$7*0.01,E85:K85)","v":0},{"$f":"NPV($C$7*0.01,E85:L85)","v":0},{"$f":"NPV($C$7*0.01,E85:M85)","v":0},{"$f":"NPV($C$7*0.01,E85:N85)","v":0},{"$f":"NPV($C$7*0.01,E85:O85)","v":0},{"$f":"NPV($C$7*0.01,E85:P85)","v":0},{"$f":"NPV($C$7*0.01,E85:Q85)","v":0},{"$f":"NPV($C$7*0.01,E85:R85)","v":0},{"$f":"NPV($C$7*0.01,E85:S85)","v":0}]
["GAIN NET (OU PERTE NETTE) ",null,"($ 483 018)",null,"($ 40 532)","($ 41 189)","($ 41 861)","($ 42 549)","($ 43 254)","($ 43 975)","($ 44 713)","($ 45 469)","($ 46 242)","($ 97 034)","($ 42 499)","($ 43 329)","($ 44 178)","($ 45 048)","($ 45 938)"]
[]
[]
[" - Impôt sur le revenu -"]
[]
["Fourchettes et taux d’imposition fédéraux et de l’Ontario combinés y compris les surtaxes - 2016"]
[null,"(Les calculs d’impôt des sociétés ne s’appliquent pas aux sociétés détenant plus de 10 millions de dollars de capital imposable.) "]
[null,"Tableaux des taux de déduction pour amortissement",null,"Taux en pourcentage","|Prix des actifs | Fraction non amortie du coût en capital>"]
[null,"Achat d’actif no 1 ",null,20,"$ 242 000","$ 228 231","$ 214 472","$ 200 727","$ 187 002","$ 173 304","$ 159 647","$ 146 045","$ 132 521","$ 119 103","$ 119 103","$ 105 505","$ 92 186","$ 79 204","$ 66 629"]
[null,"Matériel",null,"DPA","$ 24 200","$ 45 646","$ 42 894","$ 40 145","$ 37 400","$ 34 661","$ 31 929","$ 29 209","$ 26 504","$ 23 821","$ 23 821","$ 21 101","$ 18 437","$ 15 841","$ 13 326"]
[]
[null,"Achat d’actif no 2",null,10,"$ 688 000","$ 668 427","$ 648 279","$ 627 506","$ 606 052","$ 583 856","$ 560 850","$ 536 959","$ 512 098","$ 486 172","$ 486 172","$ 458 419","$ 429 484","$ 399 242","$ 367 548"]
[null,"Bâtiment",null,"DPA","$ 34 400","$ 66 843","$ 64 828","$ 62 751","$ 60 605","$ 58 386","$ 56 085","$ 53 696","$ 51 210","$ 48 617","$ 48 617","$ 45 842","$ 42 948","$ 39 924","$ 36 755"]
[]
[null,"Achat d’actif no 3",null,0,"$ 0","$ 0","$ 0","$ 0","$ 0","$ 0","$ 0","$ 0","$ 0","$ 0","$ 0","$ 0","$ 0","$ 0","$ 0"]
[null,0,null,"DPA","$ 0","$ 0","$ 0","$ 0","$ 0","$ 0","$ 0","$ 0","$ 0","$ 0","$ 0","$ 0","$ 0","$ 0","$ 0"]
[]
[null,"Total de DPA Coûts",null,null,"$ 58 600 ","$ 112 489 ","$ 107 722 ","$ 102 896 ","$ 98 006 ","$ 93 046 ","$ 88 014 ","$ 82 905 ","$ 77 714 ","$ 72 438 ","$ 72 438 ","$ 66 943 ","$ 61 386 ","$ 55 765 ","$ 50 081 "]
[]
[null,"Revenu imposable : Avant","$ 40 000 ","Après :","($ 25 258)","($ 78 582)","($ 73 204)","($ 67 717)","($ 62 112)","($ 56 383)","($ 50 521)","($ 44 520)","($ 38 370)","($ 82 065)","($ 31 086)","($ 24 689)","($ 18 161)","($ 11 496)","($ 4 691)"]
[]
[null,"Impôt à payer : Avant","$ 3 567"," Après :","$ 0","$ 0","$ 0","$ 0","$ 0","$ 0","$ 0","$ 0","$ 0","$ 0","$ 0","$ 0","$ 0","$ 0","$ 0"]
[]
[null,"POSITION DE TRÉSORERIE NETTE ","(AVANT IMPÔT)",null,"($ 40 532)","($ 41 189)","($ 41 861)","($ 42 549)","($ 43 254)","($ 43 975)","($ 44 713)","($ 45 469)","($ 46 242)","($ 97 034)","($ 42 499)","($ 43 329)","($ 44 178)","($ 45 048)","($ 45 938)"]
[null,"(Y COMPRIS LES VERSEMENTS DE CAPITAL)"]
[]
[null,"IMPÔT PAYÉ - AUGMENTATION OU (DIMINUTION)",null,null,"($ 3 567)","($ 3 567)","($ 3 567)","($ 3 567)","($ 3 567)","($ 3 567)","($ 3 567)","($ 3 567)","($ 3 567)","($ 3 567)","($ 3 567)","($ 3 567)","($ 3 567)","($ 3 567)","($ 3 567)"]
[]
[null,"POSITION DE TRÉSORERIE NETTE APRÈS PAIEMENT DE L’IMPÔT ET DU CAPITAL",null,null,"$ 9 468 ","$ 8 811 ","$ 8 139 ","$ 7 451 ","$ 6 746 ","$ 6 025 ","$ 5 287 ","$ 4 531 ","$ 3 758 ","($ 47 034)","$ 7 501 ","$ 6 671 ","$ 5 822 ","$ 4 952 ","$ 4 062 "]
[null," "]
[null,"ÉCART NET DE POSITION résultant de L’INVESTISSEMENT ",null,null,"($ 36 965)","($ 37 622)","($ 38 294)","($ 38 983)","($ 39 687)","($ 40 408)","($ 41 147)","($ 41 902)","($ 42 676)","($ 93 467)","($ 38 932)","($ 39 762)","($ 40 612)","($ 41 481)","($ 42 372)"]
[null,null,"Écart CUMULÉ",null,null,"($ 74 587)","($ 112 881)","($ 151 864)","($ 191 552)","($ 231 960)","($ 273 107)","($ 315 009)","($ 357 685)","($ 451 152)","($ 490 084)","($ 529 846)","($ 570 458)","($ 611 939)","($ 654 311)"]
[null,"Remarque : L’utilisateur assume toute responsabilité quant à l’interprétation des résultats."]
[]
[]
[]
[]
[]
[]
[]
[]
[]
[]
[]
[]
[]
[]
[]
[]
[]
[]
[]
[]
[]
[]
[]
[]
[]
[]
[]
[]
[]
[]
[]
[]
[]
[]
[]
[]
[]
[]
[]
[]
[]
[]
[]
[]
[]
[]
[]
[]
[null,"FEUILLE DE CALCUL DES INVESTISSEMENTS EN CAPITAL - COMPTABILITÉ DE CAISSE"]
[]
[]
[]
[]
[]
[]
[]
[]
[null,"NOM :",null,{"$f":"'Saisie des données'!C10","v":"Ferme Jolène et Joe"}]
[]
[null,"INVESTISSEMENT",null,{"$f":"'Saisie des données'!D12","v":"Porcherie d’engraissement-finition de 2000 têtes"}]
[]
[]
[]
[]
[]
[]
[null,{"$f":"NOW()","v":"2024-11-29T16:36:30.850"}]
[]
[]
[]
[]
[null,null,null,null,null,null,null,null,null,null,null,null,null,"oooo","m      m","    a","ffffff"]
[null,null,null,null,null,null,null,null,null,null,null,null,null," o    o","m m  m m","   a a","f"]
[null,null,null,null,null,null,null,null,null,null,null,null,null," o    o","m   m  m","  aaaaa","fff"]
[null,null,null,null,null,null,null,null,null,null,null,null,null," o    o","m      m","  a   a","f"]
[null,null,null,null,null,null,null,null,null,null,null,null,null,"oooo","m      m","  a   a","f"]

{"sheet":"Impôts","index":3,"n_rows":65,"n_cols":26,"rows_kept":65,"cut":false,"hidden":false,"merged":[]}
["Fourchettes et taux d’imposition fédéraux et de l’Ontario combinés y compris les surtaxes - 2016"]
[null,null,null,null,null,null,"Ministère de l’Agriculture, de l’Alimentation et des Affaires rurales"]
[null,null,null,null,null,null,"DIRECTION DU DÉVELOPPEMENT DE L’AGRICULTURE"]
[null,null,null,null,null,null,"UNITÉ DE LA GESTION DES ENTREPRISES"]
["Entreprise à propriétaire unique",null,null,null,"Années >"]
[null,null,null,null,1,2,3,4,5,6,7,8,9,10,11,12,13,14,15]
[null,"Revenu imposable : Avant","$ 40 000 ","Après :","($ 25 258)","($ 78 582)","($ 73 204)","($ 67 717)","($ 62 112)","($ 56 383)","($ 50 521)","($ 44 520)","($ 38 370)","($ 82 065)","($ 31 086)","($ 24 689)","($ 18 161)","($ 11 496)","($ 4 691)"]
[]
[null,"Impôt à payer : Avant","$ 5 793 "," Après :","$ 0 ","$ 0 ","$ 0 ","$ 0 ","$ 0 ","$ 0 ","$ 0 ","$ 0 ","$ 0 ","$ 0 ","$ 0 ","$ 0 ","$ 0 ","$ 0 ","$ 0 "]
[]
[]
["Société en nom collectif"]
[]
[null,"Revenu imposable : Avant","$ 40 000 ","Après :","($ 25 258)","($ 78 582)","($ 73 204)","($ 67 717)","($ 62 112)","($ 56 383)","($ 50 521)","($ 44 520)","($ 38 370)","($ 82 065)","($ 31 086)","($ 24 689)","($ 18 161)","($ 11 496)","($ 4 691)"]
[null,"Revenu des partenaires Avant","$ 20 000 ","Après :","($ 12 629)","($ 39 291)","($ 36 602)","($ 33 858)","($ 31 056)","($ 28 191)","($ 25 261)","($ 22 260)","($ 19 185)","($ 41 033)","($ 15 543)","($ 12 345)","($ 9 081)","($ 5 748)","($ 2 345)"]
[null,"Impôt total à payer : Avant","$ 3 567 ","Après :","$ 0 ","$ 0 ","$ 0 ","$ 0 ","$ 0 ","$ 0 ","$ 0 ","$ 0 ","$ 0 ","$ 0 ","$ 0 ","$ 0 ","$ 0 ","$ 0 ","$ 0 "]
[null,"Impôt à payer individuel : Avant","$ 1 783 ",null,"$ 0 ","$ 0 ","$ 0 ","$ 0 ","$ 0 ","$ 0 ","$ 0 ","$ 0 ","$ 0 ","$ 0 ","$ 0 ","$ 0 ","$ 0 ","$ 0 ","$ 0 "]
[]
["Sociétés (selon les taux fédéraux-provinciaux combinés des sociétés sous contrôle canadien détenant moins de 10 millions de dollars de capital imposable)"]
[]
[null,"Revenu imposable : Avant","$ 40 000 ","Après :","($ 25 258)","($ 78 582)","($ 73 204)","($ 67 717)","($ 62 112)","($ 56 383)","($ 50 521)","($ 44 520)","($ 38 370)","($ 82 065)","($ 31 086)","($ 24 689)","($ 18 161)","($ 11 496)","($ 4 691)"]
[]
[null,"Impôt total à payer : Avant","$ 6 000"," Après :","$ 0 ","$ 0 ","$ 0 ","$ 0 ","$ 0 ","$ 0 ","$ 0 ","$ 0 ","$ 0 ","$ 0 ","$ 0 ","$ 0 ","$ 0 ","$ 0 ","$ 0 "]
[]
[]
["Remarques sur l’impôt :","Taux d’imposition de 2016"]
["Entreprise à propriétaire unique",null,null,null,null,null,null,"Société en nom collectif",null,null,null,null,null,"Société",null,null,null,null,null,null,"moins de $ 500 000","plus de $ 500 000","Plafond de tranche de revenu imposable","650 000"]
["Fédéral",null,null,null,null,null,null,null,null,null,null,null,null,"Impôt fédéral :",null,null,null,null,null,null,0.105,0.15,"$ 500 000 ",null,52500,{"$f":"W28*U33","v":{"$error":"#VALUE!"}}]
[0.15,"$ 0 à $ 45 282",null,null,null,null,null,"Le programme part du revenu imposable qu’il divise par le nombre de partenaires actifs, et il fait le calcul des impôts pour les entreprises à propriétaire unique.",null,null,null,null,null,"Les taux employés ici concernent les sociétés privées sous contrôle canadien admissibles à la déduction fédérale pour les petites entreprises (jusqu’à 10 millions de dollars de capital imposable, plafond de 500 000 dollars de revenu imposable admissible au taux de 10,5 %).",null,null,null,null,null,null,null,null,null,150000,22500,{"$f":"X29*V33","v":17250}]
[0.20499999999999999,"sur la tranche suivante de 45 281 $ de revenu imposable (portion de revenu imposable allant de 45 282 $ à 90 563), +",null,null,null,null,null,null,null,null,null,null,null,null,null,null,null,null,null,null,null,null,null,null,null,{"$f":"SUM(Y28:Z29)","v":{"$error":"#VALUE!"}}]
[0.26," sur la tranche suivante de 49 825 $ de revenu imposable (portion de revenu imposable allant de 90 563 $ à 140 388 $), +",null,null,null,null,null,"La somme des impôts à payer par chacun des partenaires est l’impôt à payer par la société en nom collectif."]
[0.28999999999999998," sur la tranche suivante de 59 612 $ de revenu imposable (portion de revenu imposable allant de 140 388 $ à 200 000 $), +",null,null,null,null,null,null,null,null,null,null,null,null,null,null,null,null,null,null,null,null,null,"$ 40 000 "]
[0.33," du revenu imposable dépassant 200 000 $.",null,null,null,null,null,null,null,null,null,null,null," Impôt provincial",null,null,null,null,null,null,4.4999999999999998E-2,0.115,null,"$ 1 800,00","Ontario"]
["Provincial",null,null,null,null,null,null,null,null,null,null,null,null,"Le taux d’imposition des petites entreprises est de 4,5 % de la première tranche de 500 000 $ de revenu des sociétés privées sous contrôle canadien. ",null,null,null,null,null,null,null,null,null,"$ 4 200,00","Fédéral"]
[5.0500000000000003E-2,"5,05 % de la première tranche de 41 536 $ de revenu imposable, +",null,null,null,null,null,null,null,null,null,null,null,null,null,null,null,null,null,null,null,null,null,"$ 6 000,00"]
[9.1499999999999998E-2,"9,15 % de la tranche suivante de 41 539 $, +"]
[0.1116,"11,16 % de la tranche suivante de 66 925 $, +"]
[0.1216,"12,16 % de la tranche suivante de 70 000 $, +"]
[0.13159999999999999,"13,16 % du revenu imposable dépassant 220 000 $."]
[]
["Surtaxe provinciale"]
[0.2,"impôt dépassant 4 484 $"]
[0.36,"impôt dépassant 5 739 $"]
[]
["Fourchettes et taux d’imposition fédéraux et de l’Ontario combinés y compris les surtaxes - 2016"]
[]
["Calcul de l’impôt à payer",null,"Limite supérieure de la tranche de revenu","Revenu imposable de 2016","Taux marginal d’imposition de 2016"]
["Impôt total à payer différentiel","Taux d’imposition",null,"Différentiel",null,null,null,null,"Impôt à payer cumulé"]
[null,null,null,null,null,null,null,null,null,null,null,null,"($ 25 258)"]
["$ 8 327,97 ",0.20050000000000001,"$ 41 536 ",null,"première tranche de $ 41 536",null,null,null,"$ 8 327,97 ","jusqu’à","$ 41 536 ",null,"$ 8 327,97 "]
["$ 904,66 ",0.24149999999999999,"$ 45 282 ","$ 3 746 ","de $ 41 536 à $ 45 282",null,null,null,"$ 9 232,63 ","jusqu’à","$ 45 282 ",null,"$ 904,66 "]
["$ 8 261,38 ",0.29649999999999999,"$ 73 145 ","$ 27 863 ","de $ 45 282 à $ 73 145",null,null,null,"$ 17 494,01 ","jusqu’à","$ 73 145 ",null,"$ 8 261,38 "]
["$ 3 125,96 ",0.31480000000000002,"$ 83 075 ","$ 9 930 ","de $ 73 145 à $ 83 075",null,null,null,"$ 20 619,97 ","jusqu’à","$ 83 075 ",null,"$ 3 125,96 "]
["$ 1 050,93 ",0.33889999999999998,"$ 86 176 ","$ 3 101 ","de $ 83 075 à $ 86 176",null,null,null,"$ 21 670,90 ","jusqu’à","$ 86 176 ",null,"$ 1 050,93 "]
["$ 1 663,11 ",0.37909999999999999,"$ 90 563 ","$ 4 387 ","de 86 176 $ à 90 563 $",null,null,null,"$ 23 334,01 ","jusqu’à","$ 90 563 ",null,"$ 1 663,11 "]
["$ 21 629,03 ",0.43409999999999999,"$ 140 388 ","$ 49 825 ","de 90 563 $ à 140 388 $",null,null,null,"$ 44 963,04 ","jusqu’à","$ 140 388 ",null,"$ 21 629,03 "]
["$ 4 460,93 ",0.46410000000000001,"$ 150 000 ","$ 9 612 ","de 140 388 $ à 150 000 $",null,null,null,"$ 49 423,97 ","jusqu’à","$ 150 000 ",null,"$ 4 460,93 "]
["$ 23 985,00 ",0.47970000000000002,"$ 200 000 ","$ 50 000 ","de 150 000 $ à 200 000 $",null,null,null,"$ 73 408,97 ","jusqu’à","$ 200 000 ",null,"($ 84 071,18)"]
["$ 10 394,00 ",0.51970000000000005,"$ 220 000 ","$ 20 000 ","de 200 000 $ à 220 000 $",null,null,null,"$ 83 802,97 ","jusqu’à","$ 220 000 ",null,"($ 36 873,86)"]
[null,0.5353,"aucun plafond",null,"plus de $ 220 000"]
[]
["Montant personnel de base de l’Ontario","Réduction de l’impôt à payer"]
["$ 10 011 ","$ 505,56"]
["Réduction du montant personnel de base fédéral"]
["$ 11 474 ","$ 1 721,10"]

{"sheet":"Tableau des taux de DPA","index":6,"n_rows":73,"n_cols":5,"rows_kept":73,"cut":false,"hidden":false,"merged":[]}
["Taux de déduction pour amortissement (DPA)"]
["Dans la liste ci-dessous, vous trouverez les biens amortissables les plus souvent utilisés dans les exploitations agricoles. Les taux de DPA apparaissent au bas de la liste. Pour plus d’information sur les taux de DPA des catégories 13, 14, 34 et 43.1 et sur la partie XVII de la Loi de l’impôt sur le revenu, veuillez appeler le 1-800-959-5525."]
[]
["Bien amortissable","Numéro de catégorie",null,"Bien amortissable","Numéro de catégorie"]
["Avions - Acquis avant le 26 mai 1976 ",16,null,"Ramasseuses-botteleuses et moissonneuses-lieuses"]
["Avions - Acquis après le 25 mai 1976 ",9,null,"Remorquées ",8]
["Matériel apicole ",8,null,"Autopropulsées",10]
["Bateaux et leurs parties ",7,null,"Chargeur de fourrage ",8]
["Brise-lames",null,null,"Machines à glace ",8]
["Ciment ou pierre ",3,null,"Incubateurs ",8]
["Bois ",6,null,"Matériel d’irrigation - Coûts indirects ",8]
["Couveuses",8,null,"Bassins d’irrigation ",6]
["Bâtiments et leurs parties",null,null,"Tenure à bail ",13]
["Bois, galvanisés ou mobiles ",6,null,"Épandeurs de fumier ",8]
["Autres :",null,null,"Trayeuses ",8]
["Achetés après 1978 et avant 1988* ",3,null,"Mélangeurs ",8]
["Achetés après 1987 ",1,null,"Tondeuses ",8]
["Dispositifs d’entreposage des fruits et légumes (après le 19 février 1973) ",8,null,"Filets ",8]
["Tubages, caissons pour puits",8,null,"Matériel de bureau incluant les photocopieuses et les télécopieurs ",8]
["Tronçonneuses ",10,null,"Moteurs hors-bord ",10]
["Nettoyeurs de grain ou de semences ",8,null,"Véhicules de passagers","10 ou 10.1"]
["Moissonneuses-batteuses",null,null,"Conduites - Permanentes ",2]
["Remorquées ",8,null,"Planteuses - Tous les types ",8]
["Autopropulsées ",10,null,"Charrues ",8]
["Refroidisseurs à lait ",8,null,"Pompes ",8]
["Séparateurs de crème ",8,null,"Râteaux ",8]
["Cultivateurs ",8,null,"Routes ou autres revêtements de surface - Pavage ou béton ",17]
["Barrages",null,null,"Ensileuses ",8]
["Ciment, pierre, bois ou terre ",1,null,"Silos ",8]
["Excavatrices - Tous les types ",8,null,"Traîneaux",10]
["Disques ",8,null,"Pulvérisateurs",8]
["Quais ",3,null,"Nettoyeurs d’étable ",8]
["Foreuses - Tous les types ",8,null,"Coupeurs de tiges ",8]
["Étangs artificiels, digues et lagunes ",6,null,"Andaineurs"]
["Génératrices - mobiles ",8,null,"Remorqués ",8]
["Moteurs électriques ",8,null,"Autopropulsés ",10]
["Appareils de bureau électroniques et matériel d’infrastructure pour réseau de données ","8, 45, 46, 50, 52",null,"Batteuses ",8]
["Élévateurs ",8,null,"Sarcleurs - Tous les types ",8]
["Moteurs - Fixes ",8,null,"Outils"]
["Clôtures - Tous les types ",6,null,"Moins de 500 $ ",12]
["Récolteuses-hacheuses",null,null,"500 $ et plus",8]
["Remorquées ",8,null,"Tracteurs ",10]
["Autopropulsées ",10,null,"Remorques ",10]
["Calibreuses - Fruits ou légumes ",8,null,"Camions ",10]
["Dispositifs de séchage du grain ",8,null,"Camions (marchandises) ",16]
["Chargeurs à grain ",8,null,"Remorques agricoles ",10]
["Trieurs à grain ",8,null,"Réservoirs surélevés",6]
["Bâtiment d’entreposage du grain",null,null,"Matériel de désherbage",8]
["Bois, acier galvanisé ",6,null,"Matériel de soudure ",8]
["Autres",1,null,"Matériel de puits",8]
["Serres (tous les types sauf ce qui est indiqué ci-dessous) ",6,null,"Quais"]
["Serres à charpente rigide couverte par un plastique souple remplaçable ",8,null,"Ciment, acier ou pierre ",3]
["Broyeurs",8,null,"Bois ",6]
["Harnais",10,null,"Éoliennes pour recharge",8]
["Herses",8,null,"Matériel de conversion de l’énergie éolienne"]
[null,null,null,"acquis avant le 22 février 1994 ",34]
[null,null,null,"acquis après le 21 février 1994 ",43.1]
[]
["* Il est possible d’ajouter ou de modifier un édifice de la catégorie 3 acquis après 1987. Dans cette éventualité, il y a un plafond pour le montant qu’on peut inclure dans la catégorie 3. Ce plafond est la moins élevée des deux valeurs suivantes, soit 500 000 $ ou 25 % du prix de l’édifice au 31 décembre 1987."]
["Inclure tous les coûts encourus qui dépassent ce plafond dans la catégorie 1."]
[]
["Catégorie","Taux",null,"Catégorie","Taux"]
["Catégorie 1 ",0.04,null,"Catégorie 10.1 ",0.3]
["Catégorie 2 ",0.06,null,"Catégorie 12 ",1]
["Catégorie 3 ",0.05,null,"Catégorie 16 ",0.4]
["Catégorie 6 ",0.1,null,"Catégorie 17 ",0.08]
["Catégorie 7 ",0.15,null,"Catégorie 45 ",0.45]
["Catégorie 8 ",0.2,null,"Catégorie 46 ",0.3]
["Catégorie 9 ",0.25,null,"Catégorie 50 ",0.55000000000000004]
["Catégorie 10",0.3,null,"Catégorie 52 ",1]
[]
["Remarque : "]
["Les quotas ne sont pas assujettis à la règle de 50 % pour la première année. Les règles permettent l’amortissement de 75 % de l’investissement à un taux de 7 % par an à partir de l’année 1."]